[Event "Live Chess"]
[Site "Chess.com"]
[Date "2023.05.20"]
[Round "-"]
[White "Supertromp"]
[Black "blunderabit"]
[Result "1-0"]
[WhiteElo "2183"]
[BlackElo "1841"]
[TimeControl "300"]
[EndTime "13:59:47 PDT"]
[Termination "Supertromp won on time"]

1. d4 {[%clk 0:04:56.7]} 1... Nf6 {[%clk 0:04:53.1]} 2. c4 {[%clk 0:04:53.3]}
2... e6 {[%clk 0:04:50.9]} 3. Nc3 {[%clk 0:04:52.1]} 3... Bb4 {[%clk 0:04:49.3]}
4. e3 {[%clk 0:04:51.3]} 4... O-O {[%clk 0:04:46.5]} 5. Bd3 {[%clk 0:04:43.9]}
5... d5 {[%clk 0:04:45]} 6. Ne2 {[%clk 0:04:40.8]} 6... dxc4 {[%clk 0:04:25.3]}
7. Bxc4 {[%clk 0:04:19.1]} 7... b6 {[%clk 0:04:23.4]} 8. O-O {[%clk 0:04:06.1]}
8... Bb7 {[%clk 0:04:21.2]} 9. a3 {[%clk 0:03:55.5]} 9... Be7 {[%clk 0:03:57.5]}
10. Ng3 {[%clk 0:03:48.5]} 10... c5 {[%clk 0:03:55.2]} 11. dxc5 {[%clk
0:03:42.1]} 11... Bxc5 {[%clk 0:03:49.2]} 12. Qe2 {[%clk 0:03:27.1]} 12... a6
{[%clk 0:03:29.4]} 13. e4 {[%clk 0:03:20.5]} 13... b5 {[%clk 0:03:12.3]} 14. Bd3
{[%clk 0:03:19.4]} 14... Nc6 {[%clk 0:02:37.5]} 15. e5 {[%clk 0:03:13.6]} 15...
Nd5 {[%clk 0:02:31.9]} 16. Nce4 {[%clk 0:03:11.7]} 16... Be7 {[%clk 0:02:06.9]}
17. Qh5 {[%clk 0:03:03.5]} 17... g6 {[%clk 0:01:57.9]} 18. Qh6 {[%clk
0:03:02.7]} 18... Nxe5 {[%clk 0:01:55.9]} 19. Bc2 {[%clk 0:02:57]} 19... Ng4
{[%clk 0:01:38.6]} 20. Qh3 {[%clk 0:02:46.3]} 20... Ngf6 {[%clk 0:00:59.9]} 21.
Bh6 {[%clk 0:02:38]} 21... Re8 {[%clk 0:00:57.6]} 22. Rfd1 {[%clk 0:02:32.8]}
22... Qc7 {[%clk 0:00:52.2]} 23. Rac1 {[%clk 0:02:31.2]} 23... Qe5 {[%clk
0:00:44.6]} 24. f3 {[%clk 0:01:54.2]} 24... Nf4 {[%clk 0:00:34.7]} 25. Bxf4
{[%clk 0:01:51.9]} 25... Qxf4 {[%clk 0:00:33.4]} 26. Kh1 {[%clk 0:01:44.5]}
26... Rac8 {[%clk 0:00:28]} 27. Nxf6+ {[%clk 0:01:22.3]} 27... Bxf6 {[%clk
0:00:25.4]} 28. Qg4 {[%clk 0:01:20.9]} 28... Qxg4 {[%clk 0:00:22]} 29. fxg4
{[%clk 0:01:20.8]} 29... Bxb2 {[%clk 0:00:20.6]} 30. Rb1 {[%clk 0:01:20.3]}
30... Rxc2 {[%clk 0:00:19.4]} 31. Rg1 {[%clk 0:01:18.3]} 31... Rec8 {[%clk
0:00:14.8]} 32. Rbd1 {[%clk 0:01:10.1]} 32... Rxg2 {[%clk 0:00:12.4]} 33. Rxg2
{[%clk 0:01:08.7]} 33... Rc2 {[%clk 0:00:10.3]} 34. Rg1 {[%clk 0:01:05.9]} 34...
Rxg2 {[%clk 0:00:07.3]} 35. Rxg2 {[%clk 0:01:04.9]} 35... Bxa3 {[%clk
0:00:06.4]} 36. Kg1 {[%clk 0:01:03.7]} 36... Bxg2 {[%clk 0:00:05.4]} 37. Kxg2
{[%clk 0:01:03.6]} 37... b4 {[%clk 0:00:03.9]} 38. Ne2 {[%clk 0:01:01.2]} 38...
b3 {[%clk 0:00:03.5]} 39. Nc3 {[%clk 0:01:00.4]} 39... Bb4 {[%clk 0:00:01.8]}
40. Nb1 {[%clk 0:00:59.8]} 40... a5 {[%clk 0:00:00.9]} 41. Kf3 {[%clk
0:00:59.6]} 41... a4 {[%clk 0:00:00.1]} 42. Ke4 {[%clk 0:00:59.5]} 1-0

[Event "Live Chess"]
[Site "Chess.com"]
[Date "2023.05.20"]
[Round "-"]
[White "LutherSullivan"]
[Black "nigelst"]
[Result "1-0"]
[WhiteElo "2049"]
[BlackElo "1811"]
[TimeControl "300"]
[EndTime "13:59:49 PDT"]
[Termination "LutherSullivan won by resignation"]

1. d4 {[%clk 0:04:53.3]} 1... Nf6 {[%clk 0:04:57.6]} 2. Nf3 {[%clk 0:04:51.9]}
2... e6 {[%clk 0:04:56.6]} 3. g3 {[%clk 0:04:49.3]} 3... c5 {[%clk 0:04:55.5]}
4. Bg2 {[%clk 0:04:42.7]} 4... Nc6 {[%clk 0:04:53.6]} 5. O-O {[%clk 0:04:41.6]}
5... Be7 {[%clk 0:04:51.3]} 6. c4 {[%clk 0:04:39.1]} 6... cxd4 {[%clk
0:04:49.6]} 7. Nxd4 {[%clk 0:04:37.9]} 7... O-O {[%clk 0:04:46.5]} 8. Nc3 {[%clk
0:04:33.4]} 8... Nxd4 {[%clk 0:04:39.4]} 9. Qxd4 {[%clk 0:04:32.2]} 9... Rb8
{[%clk 0:04:34.2]} 10. Rd1 {[%clk 0:04:23]} 10... d6 {[%clk 0:04:32.7]} 11. Nb5
{[%clk 0:04:11.8]} 11... Qb6 {[%clk 0:03:53.4]} 12. Qxb6 {[%clk 0:03:48.9]}
12... axb6 {[%clk 0:03:52]} 13. Be3 {[%clk 0:03:48.3]} 13... Bd7 {[%clk
0:03:40.7]} 14. Nxd6 {[%clk 0:03:42.6]} 14... Bc6 {[%clk 0:03:38.9]} 15. Bxb6
{[%clk 0:03:38.7]} 15... Bxg2 {[%clk 0:03:36.5]} 16. Kxg2 {[%clk 0:03:35.1]}
16... Bxd6 {[%clk 0:03:33.1]} 17. Rxd6 {[%clk 0:03:33.6]} 17... Rbc8 {[%clk
0:03:31.2]} 18. b3 {[%clk 0:03:29.1]} 18... Ne4 {[%clk 0:03:27.8]} 19. Rd3
{[%clk 0:03:24.2]} 19... Rc6 {[%clk 0:03:19.7]} 20. Be3 {[%clk 0:03:18.9]} 20...
Rfc8 {[%clk 0:03:11.2]} 21. Rad1 {[%clk 0:03:11.7]} 21... h6 {[%clk 0:03:06.9]}
22. Rd8+ {[%clk 0:02:58.3]} 22... Rxd8 {[%clk 0:03:03.9]} 23. Rxd8+ {[%clk
0:02:57.7]} 23... Kh7 {[%clk 0:03:03.1]} 24. Rd7 {[%clk 0:02:57.2]} 24... Kg6
{[%clk 0:02:53.1]} 25. Rxb7 {[%clk 0:02:55.6]} 25... Ra6 {[%clk 0:02:51.3]} 26.
a4 {[%clk 0:02:54.2]} 26... Rd6 {[%clk 0:02:47]} 27. a5 {[%clk 0:02:51.1]} 27...
Nc3 {[%clk 0:02:43.8]} 28. Rb6 {[%clk 0:02:47.7]} 28... Rd1 {[%clk 0:02:32.4]}
29. a6 {[%clk 0:02:34.1]} 29... Ra1 {[%clk 0:02:29.2]} 30. b4 {[%clk 0:02:31.3]}
30... Nxe2 {[%clk 0:02:26.5]} 31. b5 {[%clk 0:02:27.1]} 31... Kf5 {[%clk
0:02:25.3]} 32. f3 {[%clk 0:02:16.3]} 32... g5 {[%clk 0:02:18.2]} 33. Rd6 {[%clk
0:02:12.1]} 33... h5 {[%clk 0:02:12.1]} 34. Rd2 {[%clk 0:02:05.4]} 34... Nc3
{[%clk 0:02:09.4]} 35. a7 {[%clk 0:02:00.5]} 35... g4 {[%clk 0:02:06]} 36. fxg4+
{[%clk 0:01:55]} 36... hxg4 {[%clk 0:02:05]} 37. b6 {[%clk 0:01:52.6]} 37... Ne4
{[%clk 0:02:03]} 38. Rb2 {[%clk 0:01:43.4]} 38... Nc3 {[%clk 0:01:53.9]} 39. b7
{[%clk 0:01:35.1]} 39... Nd1 {[%clk 0:01:52.3]} 40. Re2 {[%clk 0:01:30]} 40...
Nxe3+ {[%clk 0:01:40.3]} 41. Rxe3 {[%clk 0:01:28.4]} 41... Ra2+ {[%clk
0:01:39.9]} 42. Kf1 {[%clk 0:01:27]} 42... Rxh2 {[%clk 0:01:38.2]} 43. b8=Q
{[%clk 0:01:24.2]} 1-0

[Event "Live Chess"]
[Site "Chess.com"]
[Date "2023.05.20"]
[Round "-"]
[White "Duke_of_Bebington"]
[Black "GEMdzq"]
[Result "0-1"]
[WhiteElo "1585"]
[BlackElo "2222"]
[TimeControl "300"]
[EndTime "13:59:55 PDT"]
[Termination "GEMdzq won by resignation"]

1. e4 {[%clk 0:04:58.3]} 1... d6 {[%clk 0:04:53.6]} 2. d4 {[%clk 0:04:56.6]}
2... Nf6 {[%clk 0:04:51.8]} 3. Nc3 {[%clk 0:04:54.6]} 3... g6 {[%clk 0:04:50.7]}
4. f4 {[%clk 0:04:53.6]} 4... Bg7 {[%clk 0:04:46.9]} 5. Nf3 {[%clk 0:04:53]}
5... O-O {[%clk 0:04:43.8]} 6. Bd3 {[%clk 0:04:49.8]} 6... Na6 {[%clk 0:04:43]}
7. a3 {[%clk 0:04:47.6]} 7... c5 {[%clk 0:04:42.1]} 8. e5 {[%clk 0:04:42.8]}
8... Ne8 {[%clk 0:04:30.8]} 9. Bxa6 {[%clk 0:04:25.8]} 9... cxd4 {[%clk
0:04:27.7]} 10. Nh4 {[%clk 0:04:15.7]} 10... dxc3 {[%clk 0:04:21.3]} 11. Bc4
{[%clk 0:04:06.5]} 11... Qc7 {[%clk 0:04:11.5]} 12. exd6 {[%clk 0:04:00.5]}
12... Nxd6 {[%clk 0:04:08.1]} 13. Bb3 {[%clk 0:03:58.8]} 13... cxb2 {[%clk
0:04:06]} 14. Rb1 {[%clk 0:03:57]} 14... bxc1=Q {[%clk 0:04:04.8]} 15. Qxc1
{[%clk 0:03:56.9]} 15... Qc3+ {[%clk 0:04:01.7]} 16. Qd2 {[%clk 0:03:55.2]} 0-1

[Event "Live Chess"]
[Site "Chess.com"]
[Date "2023.05.20"]
[Round "-"]
[White "whitedjohn"]
[Black "bristolunichess"]
[Result "1-0"]
[WhiteElo "1664"]
[BlackElo "1803"]
[TimeControl "300"]
[EndTime "14:00:13 PDT"]
[Termination "whitedjohn won by resignation"]

1. e4 {[%clk 0:04:53.6]} 1... c5 {[%clk 0:04:55.2]} 2. Nf3 {[%clk 0:04:51.3]}
2... e6 {[%clk 0:04:52.8]} 3. d4 {[%clk 0:04:50]} 3... cxd4 {[%clk 0:04:52]} 4.
Nxd4 {[%clk 0:04:48.4]} 4... Nf6 {[%clk 0:04:51.3]} 5. Nc3 {[%clk 0:04:46.8]}
5... Nc6 {[%clk 0:04:50.5]} 6. Ndb5 {[%clk 0:04:41.9]} 6... Bb4 {[%clk
0:04:48.4]} 7. Nd6+ {[%clk 0:04:38.2]} 7... Ke7 {[%clk 0:04:46.2]} 8. Nxc8+
{[%clk 0:04:24]} 8... Rxc8 {[%clk 0:04:44.5]} 9. Bd3 {[%clk 0:04:20]} 9... Ne5
{[%clk 0:04:27.3]} 10. Bd2 {[%clk 0:04:13.5]} 10... Nxd3+ {[%clk 0:04:17.6]} 11.
cxd3 {[%clk 0:04:13]} 11... d5 {[%clk 0:04:13.2]} 12. e5 {[%clk 0:04:03.5]}
12... Nd7 {[%clk 0:04:09.2]} 13. d4 {[%clk 0:04:02.4]} 13... Nb6 {[%clk
0:03:59.7]} 14. Qg4 {[%clk 0:03:56]} 14... Kf8 {[%clk 0:03:42.7]} 15. Bg5 {[%clk
0:03:34.1]} 15... Bxc3+ {[%clk 0:03:22]} 16. bxc3 {[%clk 0:03:29.5]} 16... Qc7
{[%clk 0:03:20.9]} 17. Rc1 {[%clk 0:03:17]} 17... Nc4 {[%clk 0:02:59.4]} 18. O-O
{[%clk 0:03:11.6]} 18... h6 {[%clk 0:02:54.2]} 19. Bh4 {[%clk 0:03:06]} 19... g6
{[%clk 0:02:27.5]} 20. Qe2 {[%clk 0:03:01.8]} 20... Na5 {[%clk 0:02:00.6]} 21.
f4 {[%clk 0:02:55.8]} 21... Qc4 {[%clk 0:01:58.4]} 22. Qf3 {[%clk 0:02:37]}
22... h5 {[%clk 0:01:54.3]} 23. Bf6 {[%clk 0:02:31.2]} 23... Rh7 {[%clk
0:01:49.2]} 24. h3 {[%clk 0:02:11.9]} 24... b5 {[%clk 0:01:38.1]} 25. g4 {[%clk
0:02:08.9]} 25... hxg4 {[%clk 0:01:36.4]} 26. hxg4 {[%clk 0:02:06.1]} 26... Qxa2
{[%clk 0:01:32.8]} 27. Rf2 {[%clk 0:02:01.7]} 27... Qa3 {[%clk 0:01:27.4]} 28.
Rcc2 {[%clk 0:01:55.1]} 28... Nc4 {[%clk 0:01:06.1]} 29. f5 {[%clk 0:01:48]}
29... gxf5 {[%clk 0:00:52.1]} 30. gxf5 {[%clk 0:01:45]} 30... Ke8 {[%clk
0:00:52]} 31. fxe6 {[%clk 0:01:41.3]} 31... Kf8 {[%clk 0:00:51.9]} 32. e7+
{[%clk 0:01:22.7]} 32... Ke8 {[%clk 0:00:50.7]} 33. Rg2 {[%clk 0:01:15.2]} 33...
Qa1+ {[%clk 0:00:45.7]} 34. Kf2 {[%clk 0:01:10.5]} 34... Rh1 {[%clk 0:00:40.3]}
35. Rg8+ {[%clk 0:01:06.6]} 35... Kd7 {[%clk 0:00:36.1]} 36. Qf5+ {[%clk
0:00:54.4]} 1-0

[Event "Live Chess"]
[Site "Chess.com"]
[Date "2023.05.20"]
[Round "-"]
[White "BillW-GrangerIN"]
[Black "LiamClery2020"]
[Result "0-1"]
[WhiteElo "265"]
[BlackElo "2084"]
[TimeControl "300"]
[EndTime "14:00:29 PDT"]
[Termination "LiamClery2020 won by resignation"]

1. d4 {[%clk 0:04:52.6]} 1... Nf6 {[%clk 0:04:59.9]} 2. Bf4 {[%clk 0:04:47]}
2... d6 {[%clk 0:04:57.8]} 3. Nf3 {[%clk 0:04:42]} 3... Nc6 {[%clk 0:04:56.7]}
4. e3 {[%clk 0:04:38.5]} 4... Bg4 {[%clk 0:04:54.8]} 5. Be2 {[%clk 0:04:33.5]}
5... e5 {[%clk 0:04:48]} 6. c3 {[%clk 0:04:23.1]} 6... exf4 {[%clk 0:04:44.9]}
7. exf4 {[%clk 0:04:09.4]} 7... d5 {[%clk 0:04:43]} 8. O-O {[%clk 0:03:58.8]}
8... Bd6 {[%clk 0:04:41]} 9. Qd3 {[%clk 0:03:37.4]} 9... O-O {[%clk 0:04:38.5]}
10. Ne5 {[%clk 0:03:25.5]} 10... Bxe2 {[%clk 0:04:36.2]} 11. Qxe2 {[%clk
0:03:20.6]} 11... Re8 {[%clk 0:04:35.2]} 12. Qf3 {[%clk 0:03:03.8]} 12... Bxe5
{[%clk 0:04:32.1]} 13. dxe5 {[%clk 0:02:48.8]} 13... Ne4 {[%clk 0:04:31.2]} 14.
Qg4 {[%clk 0:02:29.7]} 14... Qe7 {[%clk 0:04:27.1]} 15. Na3 {[%clk 0:02:17.7]}
15... Nxc3 {[%clk 0:04:25.1]} 16. bxc3 {[%clk 0:02:14.6]} 16... Qxa3 {[%clk
0:04:23.5]} 17. c4 {[%clk 0:02:01.5]} 17... dxc4 {[%clk 0:04:22.1]} 18. e6
{[%clk 0:01:46.4]} 18... Rxe6 {[%clk 0:04:20.6]} 19. f5 {[%clk 0:01:39.7]} 19...
Rf6 {[%clk 0:04:19.4]} 20. Qh5 {[%clk 0:01:10.3]} 20... Qd3 {[%clk 0:04:07.8]}
21. Rad1 {[%clk 0:01:02.7]} 21... Qxf5 {[%clk 0:04:06]} 22. Qe2 {[%clk
0:00:54.2]} 22... Rg6 {[%clk 0:04:02]} 0-1

[Event "Live Chess"]
[Site "Chess.com"]
[Date "2023.05.20"]
[Round "-"]
[White "YrrriKharkiv"]
[Black "luckywookie"]
[Result "1-0"]
[WhiteElo "2069"]
[BlackElo "743"]
[TimeControl "300"]
[EndTime "14:00:32 PDT"]
[Termination "YrrriKharkiv won by checkmate"]

1. d4 {[%clk 0:04:56.7]} 1... d5 {[%clk 0:04:58.8]} 2. c4 {[%clk 0:04:55.4]}
2... c6 {[%clk 0:04:57.9]} 3. Nc3 {[%clk 0:04:53.9]} 3... e6 {[%clk 0:04:45.9]}
4. e4 {[%clk 0:04:51.4]} 4... Nd7 {[%clk 0:04:45]} 5. Nf3 {[%clk 0:04:48.9]}
5... Bb4 {[%clk 0:04:38.6]} 6. Bd3 {[%clk 0:04:47.1]} 6... Ne7 {[%clk
0:04:22.4]} 7. Bd2 {[%clk 0:04:41.4]} 7... Bxc3 {[%clk 0:03:59.6]} 8. Bxc3
{[%clk 0:04:37.8]} 8... dxc4 {[%clk 0:03:58.1]} 9. Bxc4 {[%clk 0:04:36.3]} 9...
b5 {[%clk 0:03:58]} 10. Bd3 {[%clk 0:04:35.1]} 10... Bb7 {[%clk 0:03:53.8]} 11.
Qe2 {[%clk 0:04:26.5]} 11... Rc8 {[%clk 0:03:51.4]} 12. O-O {[%clk 0:04:14.5]}
12... f6 {[%clk 0:03:41]} 13. d5 {[%clk 0:03:57.4]} 13... Ng6 {[%clk 0:03:25.3]}
14. dxe6 {[%clk 0:03:47.6]} 14... Nf4 {[%clk 0:03:21.2]} 15. exd7+ {[%clk
0:03:45.2]} 15... Qxd7 {[%clk 0:03:18.4]} 16. Qe3 {[%clk 0:03:42.1]} 16... Nxd3
{[%clk 0:03:15]} 17. Rad1 {[%clk 0:03:40.1]} 17... O-O {[%clk 0:02:39.8]} 18.
Rxd3 {[%clk 0:03:29.6]} 18... Qe6 {[%clk 0:02:34.4]} 19. Nd4 {[%clk 0:03:16.6]}
19... Qxa2 {[%clk 0:02:26.2]} 20. Nf5 {[%clk 0:02:43.1]} 20... c5 {[%clk
0:02:19.3]} 21. Ne7+ {[%clk 0:02:32.6]} 21... Kh8 {[%clk 0:02:17.8]} 22. Nxc8
{[%clk 0:02:31.8]} 22... c4 {[%clk 0:02:12.6]} 23. Qc5 {[%clk 0:02:20.7]} 23...
Bxc8 {[%clk 0:02:08.9]} 24. Qxf8# {[%clk 0:02:18.4]} 1-0

[Event "Live Chess"]
[Site "Chess.com"]
[Date "2023.05.20"]
[Round "-"]
[White "wot-not"]
[Black "Greenbecker"]
[Result "0-1"]
[WhiteElo "1506"]
[BlackElo "1656"]
[TimeControl "300"]
[EndTime "14:00:49 PDT"]
[Termination "Greenbecker won by resignation"]

1. e4 {[%clk 0:04:54.9]} 1... e6 {[%clk 0:04:59.5]} 2. f4 {[%clk 0:04:53.4]}
2... d5 {[%clk 0:04:58.8]} 3. Nf3 {[%clk 0:04:52.9]} 3... dxe4 {[%clk
0:04:57.7]} 4. Ne5 {[%clk 0:04:52.2]} 4... Nd7 {[%clk 0:04:55.1]} 5. Bb5 {[%clk
0:04:47.5]} 5... c6 {[%clk 0:04:52.1]} 6. Ba4 {[%clk 0:04:46.6]} 6... Nxe5
{[%clk 0:04:50]} 7. fxe5 {[%clk 0:04:46]} 7... e3 {[%clk 0:04:40.5]} 8. d4
{[%clk 0:04:43.1]} 8... Qa5+ {[%clk 0:04:26.8]} 9. Nc3 {[%clk 0:04:39.8]} 9...
Bb4 {[%clk 0:04:25.5]} 10. O-O {[%clk 0:04:06]} 10... Bxc3 {[%clk 0:04:23.5]}
11. bxc3 {[%clk 0:04:01.3]} 11... Qxa4 {[%clk 0:04:20.4]} 12. Qf3 {[%clk
0:03:58.6]} 12... f6 {[%clk 0:04:17]} 13. Bxe3 {[%clk 0:03:50.2]} 13... Bd7
{[%clk 0:04:13.1]} 14. Rab1 {[%clk 0:03:16.4]} 14... O-O-O {[%clk 0:04:01.3]}
15. Rb4 {[%clk 0:03:14.5]} 15... Qxc2 {[%clk 0:03:57.4]} 16. Rfb1 {[%clk
0:03:10.1]} 16... b6 {[%clk 0:03:54.7]} 17. R1b2 {[%clk 0:02:58.6]} 17... Qf5
{[%clk 0:03:49.2]} 18. Qe2 {[%clk 0:02:56.8]} 18... Kb7 {[%clk 0:03:41.5]} 19.
a4 {[%clk 0:02:51.4]} 19... Ne7 {[%clk 0:03:37.3]} 20. a5 {[%clk 0:02:50.8]}
20... Nd5 {[%clk 0:03:34]} 21. R4b3 {[%clk 0:02:46]} 21... Qe4 {[%clk
0:03:14.1]} 22. axb6 {[%clk 0:02:31.2]} 22... axb6 {[%clk 0:03:10.8]} 23. Ra3
{[%clk 0:02:20.4]} 23... Qxe3+ {[%clk 0:03:06.5]} 24. Qxe3 {[%clk 0:02:19.2]}
24... Nxe3 {[%clk 0:03:05.3]} 25. Rab3 {[%clk 0:02:09.2]} 25... Nc4 {[%clk
0:03:01.1]} 26. Rb1 {[%clk 0:02:08.4]} 26... b5 {[%clk 0:02:59.6]} 27. exf6
{[%clk 0:02:06.6]} 27... gxf6 {[%clk 0:02:58.1]} 28. Rf1 {[%clk 0:02:04.8]}
28... f5 {[%clk 0:02:56.3]} 29. Rbb1 {[%clk 0:02:03.9]} 29... Nd2 {[%clk
0:02:53.8]} 0-1

[Event "Live Chess"]
[Site "Chess.com"]
[Date "2023.05.20"]
[Round "-"]
[White "lightningorderyt"]
[Black "Jeffaroow"]
[Result "0-1"]
[WhiteElo "506"]
[BlackElo "477"]
[TimeControl "300"]
[EndTime "14:00:52 PDT"]
[Termination "Jeffaroow won by resignation"]

1. d4 {[%clk 0:04:56.1]} 1... e5 {[%clk 0:04:57]} 2. e4 {[%clk 0:04:52.4]} 2...
exd4 {[%clk 0:04:53.7]} 3. Qxd4 {[%clk 0:04:51.6]} 3... Nc6 {[%clk 0:04:52.7]}
4. Qd3 {[%clk 0:04:49.9]} 4... Nf6 {[%clk 0:04:51.1]} 5. Nc3 {[%clk 0:04:47.5]}
5... Bc5 {[%clk 0:04:38.9]} 6. Nf3 {[%clk 0:04:44.4]} 6... Ng4 {[%clk
0:04:34.2]} 7. Qb5 {[%clk 0:04:28.6]} 7... Bxf2+ {[%clk 0:04:28.1]} 8. Kd1
{[%clk 0:04:17.4]} 8... Ne3+ {[%clk 0:04:12.2]} 9. Bxe3 {[%clk 0:04:13.8]} 9...
Bxe3 {[%clk 0:04:12.1]} 10. Ke2 {[%clk 0:04:04]} 10... Nd4+ {[%clk 0:04:08.4]}
11. Nxd4 {[%clk 0:03:59]} 11... Bxd4 {[%clk 0:04:07.1]} 12. Rd1 {[%clk 0:03:49]}
12... Bxc3 {[%clk 0:04:01.7]} 13. bxc3 {[%clk 0:03:47.3]} 13... b6 {[%clk
0:03:54.3]} 14. Qe5+ {[%clk 0:03:43.7]} 14... Qe7 {[%clk 0:03:48.8]} 15. Qxg7
{[%clk 0:03:41.7]} 15... Qxe4+ {[%clk 0:03:46]} 16. Kd2 {[%clk 0:03:38.5]} 16...
Rf8 {[%clk 0:03:25.9]} 17. Bd3 {[%clk 0:03:29.9]} 17... Qxg2+ {[%clk 0:03:19.6]}
18. Kc1 {[%clk 0:03:22.5]} 18... Qxg7 {[%clk 0:03:11.9]} 0-1

[Event "Live Chess"]
[Site "Chess.com"]
[Date "2023.05.20"]
[Round "-"]
[White "DRS44"]
[Black "defenderalist"]
[Result "0-1"]
[WhiteElo "1394"]
[BlackElo "1623"]
[TimeControl "300"]
[EndTime "14:00:52 PDT"]
[Termination "defenderalist won by resignation"]

1. e4 {[%clk 0:04:52]} 1... Nf6 {[%clk 0:04:59.9]} 2. Nc3 {[%clk 0:04:39.1]}
2... e5 {[%clk 0:04:58.3]} 3. f4 {[%clk 0:04:32.9]} 3... d6 {[%clk 0:04:50.9]}
4. d4 {[%clk 0:04:25.7]} 4... exd4 {[%clk 0:04:46.9]} 5. Qxd4 {[%clk 0:04:17.1]}
5... Nc6 {[%clk 0:04:45.7]} 6. Bb5 {[%clk 0:04:10.5]} 6... Bd7 {[%clk
0:04:41.1]} 7. Bxc6 {[%clk 0:04:04.2]} 7... Bxc6 {[%clk 0:04:39.9]} 8. Nf3
{[%clk 0:04:02.5]} 8... Be7 {[%clk 0:04:38.5]} 9. O-O {[%clk 0:03:57.3]} 9...
O-O {[%clk 0:04:37.2]} 10. e5 {[%clk 0:03:52.2]} 10... dxe5 {[%clk 0:04:32.5]}
11. fxe5 {[%clk 0:03:48.4]} 11... Bxf3 {[%clk 0:04:28.3]} 12. Rxf3 {[%clk
0:03:40.1]} 12... Qxd4+ {[%clk 0:04:26.4]} 13. Be3 {[%clk 0:03:30.3]} 13... Qxe5
{[%clk 0:04:20.1]} 0-1

[Event "Live Chess"]
[Site "Chess.com"]
[Date "2023.05.20"]
[Round "-"]
[White "grillage"]
[Black "Reggie016"]
[Result "1-0"]
[WhiteElo "1852"]
[BlackElo "1070"]
[TimeControl "300"]
[EndTime "14:00:54 PDT"]
[Termination "grillage won by resignation"]

1. d4 {[%clk 0:04:58.5]} 1... e6 {[%clk 0:04:57.6]} 2. Nf3 {[%clk 0:04:56.4]}
2... f5 {[%clk 0:04:56.5]} 3. d5 {[%clk 0:04:53.7]} 3... Nf6 {[%clk 0:04:51.2]}
4. dxe6 {[%clk 0:04:51.6]} 4... dxe6 {[%clk 0:04:50.6]} 5. Qxd8+ {[%clk
0:04:50.4]} 5... Kxd8 {[%clk 0:04:50.5]} 6. Nc3 {[%clk 0:04:48.1]} 6... Nc6
{[%clk 0:04:50.1]} 7. Bf4 {[%clk 0:04:42.7]} 7... b6 {[%clk 0:04:48.7]} 8.
O-O-O+ {[%clk 0:04:41.3]} 8... Ke7 {[%clk 0:04:45.1]} 9. Bxc7 {[%clk 0:04:38.8]}
9... Bb7 {[%clk 0:04:42.7]} 10. e3 {[%clk 0:04:30.8]} 10... Rc8 {[%clk
0:04:39.6]} 11. Bd6+ {[%clk 0:04:28.1]} 11... Kf7 {[%clk 0:04:36.3]} 12. Ng5+
{[%clk 0:04:24.9]} 12... Kg6 {[%clk 0:04:35]} 13. Nxe6 {[%clk 0:04:20.6]} 13...
Bxd6 {[%clk 0:04:33.9]} 14. Rxd6 {[%clk 0:04:18.6]} 14... Nb4 {[%clk 0:04:32.7]}
15. Nf4+ {[%clk 0:04:14.1]} 15... Kf7 {[%clk 0:04:29.4]} 16. a3 {[%clk
0:04:06.3]} 16... Nbd5 {[%clk 0:04:22.5]} 17. Ncxd5 {[%clk 0:04:01.7]} 17...
Bxd5 {[%clk 0:04:21.8]} 18. Nxd5 {[%clk 0:04:00.5]} 1-0

[Event "Live Chess"]
[Site "Chess.com"]
[Date "2023.05.20"]
[Round "-"]
[White "CheckThis4"]
[Black "ItsNot_Jasper"]
[Result "1-0"]
[WhiteElo "2549"]
[BlackElo "1322"]
[TimeControl "300"]
[EndTime "14:01:04 PDT"]
[Termination "CheckThis4 won by checkmate"]

1. d4 {[%clk 0:04:58.7]} 1... Nf6 {[%clk 0:04:58.1]} 2. Nc3 {[%clk 0:04:56.2]}
2... d5 {[%clk 0:04:53.1]} 3. e4 {[%clk 0:04:54.5]} 3... Nxe4 {[%clk 0:04:46.4]}
4. Nxe4 {[%clk 0:04:52.7]} 4... dxe4 {[%clk 0:04:44.7]} 5. Bc4 {[%clk
0:04:52.3]} 5... Nc6 {[%clk 0:04:42.2]} 6. c3 {[%clk 0:04:50.5]} 6... Bf5 {[%clk
0:04:33]} 7. g4 {[%clk 0:04:46.5]} 7... Bg6 {[%clk 0:04:28.4]} 8. Ne2 {[%clk
0:04:45.5]} 8... e6 {[%clk 0:04:22.9]} 9. h4 {[%clk 0:04:42.5]} 9... h6 {[%clk
0:04:20.7]} 10. Nf4 {[%clk 0:04:41.5]} 10... Bh7 {[%clk 0:04:18.7]} 11. g5
{[%clk 0:04:39.2]} 11... hxg5 {[%clk 0:03:52.4]} 12. hxg5 {[%clk 0:04:39.1]}
12... Qxg5 {[%clk 0:03:51.3]} 13. Be3 {[%clk 0:04:11.8]} 13... Qf5 {[%clk
0:03:43.5]} 14. Rh5 {[%clk 0:04:07.1]} 14... g5 {[%clk 0:03:21.5]} 15. Qb3
{[%clk 0:04:05.5]} 15... O-O-O {[%clk 0:03:13.8]} 16. Nxe6 {[%clk 0:04:03.5]}
16... Rd6 {[%clk 0:02:32.9]} 17. Nxf8 {[%clk 0:03:41.9]} 17... Rxf8 {[%clk
0:02:29.1]} 18. O-O-O {[%clk 0:03:39.2]} 18... Na5 {[%clk 0:02:25.5]} 19. Qb4
{[%clk 0:03:36.4]} 19... Nxc4 {[%clk 0:02:23]} 20. Qxc4 {[%clk 0:03:36.3]} 20...
f6 {[%clk 0:02:15.9]} 21. d5 {[%clk 0:03:33.6]} 21... Bg6 {[%clk 0:02:11.7]} 22.
Rh6 {[%clk 0:03:32.2]} 22... Bf7 {[%clk 0:01:55.3]} 23. Qb4 {[%clk 0:02:57.7]}
23... Bxd5 {[%clk 0:01:41]} 24. Bc5 {[%clk 0:02:52.7]} 24... a5 {[%clk
0:01:37.3]} 25. Qd4 {[%clk 0:02:38.3]} 25... Qf4+ {[%clk 0:01:27.1]} 26. Qe3
{[%clk 0:02:35.3]} 26... Bxa2 {[%clk 0:01:20.9]} 27. Bxd6 {[%clk 0:02:30]} 27...
cxd6 {[%clk 0:01:19.3]} 28. Rh7 {[%clk 0:02:04.9]} 28... Qxe3+ {[%clk 0:01:00]}
29. fxe3 {[%clk 0:02:03]} 29... d5 {[%clk 0:00:57.3]} 30. Rg7 {[%clk 0:01:57.2]}
30... Bc4 {[%clk 0:00:47.8]} 31. Rh1 {[%clk 0:01:55.8]} 31... a4 {[%clk
0:00:37.4]} 32. Rhh7 {[%clk 0:01:53.8]} 32... Ba6 {[%clk 0:00:36.3]} 33. Rf7
{[%clk 0:01:47.9]} 33... Rg8 {[%clk 0:00:27.4]} 34. Rxf6 {[%clk 0:01:42.8]}
34... g4 {[%clk 0:00:26.5]} 35. Rh1 {[%clk 0:01:32.4]} 35... g3 {[%clk
0:00:22.7]} 36. Rg1 {[%clk 0:01:29.2]} 36... g2 {[%clk 0:00:19.7]} 37. Rf2
{[%clk 0:01:26.9]} 37... Bf1 {[%clk 0:00:14.4]} 38. Kd2 {[%clk 0:01:25.7]} 38...
b5 {[%clk 0:00:12.6]} 39. Kc2 {[%clk 0:01:22.3]} 39... Kc7 {[%clk 0:00:12.2]}
40. b3 {[%clk 0:01:21.3]} 40... axb3+ {[%clk 0:00:10.2]} 41. Kxb3 {[%clk
0:01:20.6]} 41... Kc6 {[%clk 0:00:09.9]} 42. Kb4 {[%clk 0:01:19.2]} 42... Ra8
{[%clk 0:00:06.8]} 43. Rf6+ {[%clk 0:01:18]} 43... Kc7 {[%clk 0:00:05]} 44. Kc5
{[%clk 0:01:16.8]} 44... Rc8 {[%clk 0:00:01.4]} 45. Rf7+ {[%clk 0:01:15.5]}
45... Kb8+ {[%clk 0:00:00.4]} 46. Kb6 {[%clk 0:01:14.2]} 46... Rc7 {[%clk
0:00:00.3]} 47. Rxc7 {[%clk 0:01:12.4]} 47... Ka8 {[%clk 0:00:00.2]} 48. Rc8#
{[%clk 0:01:11.4]} 1-0